[Event "WALTON 40th BAN-ch U20 Girls 2022"]
[Site "Dhaka"]
[Date "2022.02.21"]
[Round "7.2"]
[White "Tasnia Tarannum, Orpa"]
[Black "Kazi Zarin, Tasnim"]
[Result "1/2-1/2"]
[ECO "E62"]
[WhiteElo "1678"]
[BlackElo "1801"]
[Annotator "NA RC"]
[PlyCount "129"]
[EventDate "2022.02.15"]
[EventType "swiss"]
[EventCountry "BAN"]
[SourceTitle "playchess.com"]
[Source "ChessBase"]
[SourceQuality "1"]
[TimeControl "5400+30"]

{[%evp 8,111,46,18,31,21,31,28,37,21,27,29,31,30,29,19,77,72,68,70,73,69,73,68,70,64,58,58,75,80,80,53,57,50,103,97,110,104,110,32767,32767,32767,32767,32767,32767,32767,32767,60,60,64,67,68,67,57,104,94,111,106,111,97,113,86,82,99,85,67,83,91,106,96,136,137,108,106,122,89,79,26,32767,32767,32767,32767,32767,32767,32767,32767,32767,32767,32767,32767,32767,32767,32767,32767,32767,32767,32767,32767,32767,32767,32767,32767,32767,8,8,8]} 1. d4 {[%emt 0:00:03]} Nf6 {[%emt 0:17:50]} 2. Nf3 {[%emt 0:00:21]} d6 {[%emt 0:00:19]} 3. c4 {[%emt 0:01:31]} g6 {[%emt 0:00:13]} 4. Nc3 {[%emt 0:00:18]} Bg7 {[%emt 0:00:34]} 5. g3 {[%emt 0:01:05]} O-O {[%emt 0:00:44]} 6. Bg2 {[%emt 0:00:05]} Nbd7 {[%emt 0:00:31]} 7. O-O {[%emt 0:00:35]} e5 {[%emt 0:02:03]} 8. dxe5 {[%emt 0:07:45]} Nxe5 {[%emt 0:00:16]} 9. Nxe5 {[%emt 0:00:37]} dxe5 {[%emt 0:00:02]} 10. Qxd8 {[%emt 0:00:23]} Rxd8 {[%emt 0:00:04]} 11. Bg5 {[%emt 0:00:31]} h6 {[%emt 0:00:46]} (11... Rd7 $11) 12. Bxf6 {[%emt 0:00:54]} Bxf6 {[%emt 0:00:05]} 13. Nd5 {[%emt 0:00:07]} Bg7 {[%emt 0:01:08]} 14. Nxc7 {[%emt 0:00:12]} Rb8 {[%emt 0:00:17]} 15. Rfd1 {[%emt 0:02:24]} Bg4 {[%emt 0:03:45]} 16. f3 {[%emt 0:04:29]} Bd7 {[%emt 0:00:30]} 17. Nd5 {[%emt 0:04:38]} e4 {[%emt 0:01:25]} 18. Rd2 {[%emt 0:02:38]} ({Reject} 18. fxe4 Bxb2 19. Rab1 Be5 $11) 18... exf3 {[%emt 0:05:44]} 19. exf3 {[%emt 0:01:28]} Be6 {[%emt 0:04:36]} 20. f4 {[%emt 0:02:42]} b5 {[%emt 0:06:56]} (20... Kh8 $14) 21. Rad1 {[%emt 0:04:53]} Kf8 {[%emt 0:01:13]} 22. c5 {[%emt 0:12:27]} Rbc8 {[%emt 0:17:14]} 23. b4 {[%emt 0:14:46]} Bxd5 {[%emt 0:02:45]} 24. Rxd5 {[%emt 0:00:10]} Rxd5 {[%emt 0:00:05]} 25. Rxd5 {[%emt 0:00:04]} Bc3 {[%emt 0:00:52]} 26. a3 {[%emt 0:00:42]} a5 {[%emt 0:01:06]} 27. Rd7 {[%emt 0:06:32]} axb4 {[%emt 0:02:37]} 28. axb4 {[%emt 0:00:54]} Bxb4 {[%emt 0:00:33]} 29. c6 {[%emt 0:00:06]} Ba5 {[%emt 0:08:54]} 30. Rb7 {[%emt 0:03:43]} Rc7 {[%emt 0:02:23]} 31. Rxb5 {[%emt 0:00:56]} Bc3 {[%emt 0:00:03]} 32. Rb3 {[%emt 0:02:25]} Ba5 {[%emt 0:00:36]} 33. Rd3 {[%emt 0:00:28]} Ke7 {[%emt 0:01:44]} 34. Kf1 {[%emt 0:00:29]} Bb4 {[%emt 0:01:12]} 35. Ke2 {[%emt 0:00:34]} Bd6 {[%emt 0:00:21]} 36. Rc3 {[%emt 0:03:00]} Bb4 {[%emt 0:03:02]} 37. Rc2 {[%emt 0:00:08]} Bd6 {[%emt 0:02:29]} 38. Kd3 {[%emt 0:00:20]} h5 {[%emt 0:00:24]} (38... Ra7 $142) 39. h4 {[%emt 0:01:43]} Ra7 {[%emt 0:03:12]} 40. Rc3 {[%emt 0:02:02]} ({White should play} 40. Bd5) 40... f6 {[%emt 0:01:54]} 41. Ke2 {[%emt 0:08:10]} Ra2+ {[%emt 0:01:24] [#]} 42. Kf3 {[%emt 0:00:11]} (42. Kf1 $1 $16 Bc7 43. Bf3) 42... Ra3 {[%emt 0:02:00]} 43. Rxa3 {[%emt 0:02:37]} Bxa3 {[%emt 0:00:02]} 44. g4 {[%emt 0:00:50]} hxg4+ {[%emt 0:00:22]} 45. Kxg4 {[%emt 0:00:05]} Bd6 {[%emt 0:00:02]} 46. f5 {[%emt 0:00:48]} gxf5+ {[%emt 0:01:21]} 47. Kxf5 {[%emt 0:00:03]} Kf7 {[%emt 0:00:12]} 48. Bd5+ {[%emt 0:00:36]} Kg7 {[%emt 0:00:06]} 49. h5 {[%emt 0:00:37]} Be5 {[%emt 0:00:22]} 50. Ke6 {[%emt 0:00:27]} Kh6 {[%emt 0:00:19]} 51. Bf3 {[%emt 0:00:10]} Kg7 {[%emt 0:00:06]} 52. Kd7 {[%emt 0:01:01]} Bg3 {[%emt 0:00:13]} 53. c7 {[%emt 0:00:26]} Bxc7 {[%emt 0:00:03]} 54. Kxc7 {[%emt 0:00:05]} f5 {[%emt 0:00:10]} 55. Kd7 {[%emt 0:00:13]} f4 $11 {[%emt 0:00:05]} 56. Ke7 {[%emt 0:00:06]} Kg8 {[%emt 0:00:18]} 57. Kf6 {[%emt 0:02:45]} Kh7 {[%emt 0:00:02]} 58. Kg5 {[%emt 0:01:18]} Kg7 {[%emt 0:00:13]} 59. Be4 {[%emt 0:00:37]} f3 {[%emt 0:00:11]} 60. Bxf3 {[%emt 0:00:01]} Kh7 {[%emt 0:00:06]} 61. Be4+ {[%emt 0:00:36]} Kg7 {[%emt 0:00:02]} 62. Bd3 {[%emt 0:05:24]} Kh8 {[%emt 0:00:11]} 63. Kf6 {[%emt 0:00:45]} Kg8 {[%emt 0:00:06]} 64. Kg6 {[%emt 0:01:03]} Kh8 {[%emt 0:00:04]} 65. Kf7 {[%emt 0:00:52]} 1/2-1/2

[Event "WALTON 40th BAN-ch U20 Girls 2022"]
[Site "Dhaka"]
[Date "2022.02.21"]
[Round "7.3"]
[White "Shoptorshi, Rahman"]
[Black "Jannatul, Ferdous"]
[Result "0-1"]
[ECO "B32"]
[WhiteElo "1275"]
[BlackElo "1852"]
[Annotator "NA RC"]
[PlyCount "122"]
[EventDate "2022.02.15"]
[EventType "swiss"]
[EventCountry "BAN"]
[SourceTitle "playchess.com"]
[Source "ChessBase"]
[SourceQuality "1"]
[TimeControl "5400+30"]

{[%evp 8,121,6,0,-4,3,17,12,22,7,0,-42,-35,-37,-38,-56,-44,-62,91,-33,8,28,21,25,17,25,93,50,71,62,210,-56,-33,32767,32767,32767,32767,32767,-1326,-1245,-490,-479,-550,-621,-618,-847,-952,-973,-952,-891,-728,-701,-753,-754,-764,-763,-760,-851,-929,-942,-937,-1072,-1258,-1099,-1258,-1592,-4847,-5247,-5630,-1734,-5996,-6179,-12189,-6119,-12843,-29973,-29977,-29980,-29980,-29981,-29981,-29979,-29983,-29975,-29985,-29985,-12848,-29985,-29986,-29987,-29988,-29988,-29989,-27999,-29989,-29989,-29990,-29990,-29991,-29991,-29992,-29992,-29993,-29993,-27999,-29994,-27999,-27999,-29996,-29996,-27999,-29997,-29998,-29998,-27999,-29999]} 1. e4 {[%emt 1:31:00]} c5 {[%emt 0:03:26]} 2. Nf3 {[%emt 0:00:00]} Nc6 {[%emt 0:01:09]} 3. d4 {[%emt 0:00:00]} cxd4 {[%emt 0:00:52]} 4. Nxd4 {[%emt 0:00:00]} e5 {[%emt 0:00:10]} 5. Nxc6 {[%emt 0:00:00]} bxc6 {[%emt 0:00:03]} 6. Bd3 {[%emt 0:00:00]} h6 {[%emt 0:01:13]} 7. O-O {[%emt 0:00:00]} Nf6 {[%emt 0:00:22]} 8. h3 {[%emt 0:00:00]} Bc5 {[%emt 0:01:18]} 9. Be3 {[%emt 0:00:00]} (9. Qf3 $11) 9... Bxe3 {[%emt 0:06:33]} 10. fxe3 {[%emt 0:00:00]} Qb6 {[%emt 0:00:03]} 11. Qf3 {[%emt 0:00:00]} Qxb2 {[%emt 0:10:02]} 12. Nd2 {[%emt 0:00:00]} Qb4 {[%emt 0:00:14] [#]} (12... d6 $15 {keeps the upper hand.}) 13. Nc4 {[%emt 0:00:00]} ({White must play} 13. Qg3 $1 $16 {[%cal Rg3g7]} O-O (13... Qxd2 14. Rad1) 14. Rxf6 Qxd2 15. Rxh6) 13... Qe7 {[%emt 0:00:23]} (13... d6 $15 14. Qg3 Nh5) 14. Qg3 {[%emt 0:00:00]} O-O {[%emt 0:01:16]} 15. Nxe5 {[%emt 0:00:00]} Nh5 {[%emt 0:21:23]} 16. Qh2 {[%emt 0:00:00]} Bb7 {[%emt 0:03:36] [#]} (16... Qc5 $11) 17. Nc4 {[%emt 0:00:00]} (17. Rab1 $1 $16 {[%cal Rb1b7]} d6 18. Nc4) 17... d5 {[%emt 0:02:19] [#]} 18. Nd6 $1 {[%emt 0:00:00]} dxe4 {[%emt 0:02:09] [#]} (18... g6 $16 {is a better defense.}) 19. Bxe4 $2 {[%emt 0:00:00]} (19. Be2 $1 $18 {[%cal Re2h5]}) 19... Ba6 {[%emt 0:03:24]} 20. Rf3 {[%emt 0:00:00]} Rad8 {[%emt 0:01:23]} 21. Bxc6 {[%emt 0:00:00]} Rxd6 {[%emt 0:02:01]} 22. Ba4 {[%emt 0:00:00]} Be2 {[%emt 0:01:39]} 23. Rf2 {[%emt 0:00:00] [#]} Rd1+ {[%emt 0:01:17]} (23... Rfd8 $142 $1 24. Qxd6 Qxd6 25. Rxe2 Qa6) 24. Rxd1 {[%emt 0:00:00]} Bxd1 {[%emt 0:00:02]} 25. g4 {[%emt 0:00:00]} Nf6 {[%emt 0:01:17]} 26. Rf1 {[%emt 0:00:00]} Qxe3+ {[%emt 0:00:30]} 27. Qf2 {[%emt 0:00:00]} Qxh3 {[%emt 0:01:36]} 28. Qg2 {[%emt 0:00:00]} Qxg4 {[%emt 0:00:59]} 29. Qxg4 {[%emt 0:00:00]} Bxg4 {[%emt 0:00:02]} 30. Re1 {[%emt 0:00:32]} Be6 {[%emt 0:00:16]} 31. a3 {[%emt 0:01:35]} Rc8 {[%emt 0:00:28]} 32. Rc1 {[%emt 0:02:22]} Rc3 {[%emt 0:01:21]} 33. Ra1 {[%emt 0:01:03]} Ne4 {[%emt 0:00:19]} 34. Bb3 {[%emt 0:02:51]} Bxb3 {[%emt 0:00:27]} 35. cxb3 {[%emt 0:00:08]} Rxb3 {[%emt 0:00:02]} 36. Kg2 {[%emt 0:01:04]} f5 {[%emt 0:00:37]} 37. Rf1 {[%emt 0:01:23]} Rg3+ {[%emt 0:00:52]} 38. Kh2 {[%emt 0:00:49]} Rxa3 {[%emt 0:00:06]} 39. Rxf5 {[%emt 0:00:32]} a5 {[%emt 0:00:16]} (39... Ra1 $142 40. Kg2 a5 41. Kh2 Nf6 42. Kg2 a4 43. Kg3 a3 44. Kh2 a2 45. Ra5 Ne4 46. Ra8+ Kh7 47. Kg2 Nc3 48. Ra7 Rb1 49. Kf3 a1=Q 50. Rxa1 Rxa1 51. Kf2 Rd1 52. Kg3 Rd3+ 53. Kg2 Kg6 54. Kf2 Kf5 55. Kg1 Kg4 56. Kf2 Kh3 57. Kf1 Kg3 58. Kg1 Rd1#) 40. Re5 {[%emt 0:00:56]} Ng5 {[%emt 0:00:03]} 41. Rb5 {[%emt 0:00:49]} a4 {[%emt 0:00:08]} 42. Rb4 {[%emt 0:00:59]} Ra1 {[%emt 0:00:21]} 43. Kg2 {[%emt 0:01:03]} a3 {[%emt 0:00:06]} 44. Ra4 {[%emt 0:00:44]} a2 {[%emt 0:00:06]} 45. Ra8+ {[%emt 0:01:28]} Kh7 {[%emt 0:00:02]} 46. Ra4 {[%emt 0:00:31] [#]} Ne4 $1 {[%emt 0:00:10]} 47. Rxe4 {[%emt 0:00:59]} Rb1 {[%emt 0:00:07]} 48. Ra4 {[%emt 0:00:23]} a1=Q {[%emt 0:00:11]} 49. Rxa1 {[%emt 0:00:09]} Rxa1 {[%emt 0:00:01]} 50. Kf3 {[%emt 0:00:27]} Rg1 {[%emt 0:00:23]} 51. Kf2 {[%emt 0:00:17]} Rg6 {[%emt 0:00:02]} 52. Kf3 {[%emt 0:00:33]} h5 {[%emt 0:00:02]} 53. Kf4 {[%emt 0:00:42]} h4 {[%emt 0:00:25]} 54. Kf5 {[%emt 0:00:28]} h3 {[%emt 0:00:02]} 55. Kf4 {[%emt 0:00:16]} h2 {[%emt 0:00:02]} 56. Kf5 {[%emt 0:00:16]} h1=Q {[%emt 0:00:06]} 57. Kf4 {[%emt 0:00:21]} Qh5 {[%emt 0:00:12]} 58. Ke4 {[%emt 0:00:28]} Rg4+ {[%emt 0:00:03]} 59. Kf3 {[%emt 0:00:31]} Qh3+ {[%emt 0:00:02]} 60. Kf2 {[%emt 0:00:28]} Rg2+ {[%emt 0:00:03]} 61. Kf1 {[%emt 0:00:16]} Qh1# {[%emt 0:00:03]} 0-1

[Event "WALTON 40th BAN-ch U20 Girls 2022"]
[Site "Dhaka"]
[Date "2022.02.21"]
[Round "7.4"]
[White "Nusrat Jahan, Alo"]
[Black "Tasfia, Tahsin Prima"]
[Result "0-1"]
[ECO "E24"]
[WhiteElo "1818"]
[BlackElo "1423"]
[Annotator "NA RC"]
[PlyCount "98"]
[EventDate "2022.02.15"]
[EventType "swiss"]
[EventCountry "BAN"]
[SourceTitle "playchess.com"]
[Source "ChessBase"]
[SourceQuality "1"]
[TimeControl "5400+30"]

{[%evp 8,97,-7,-5,-4,-43,-41,-50,-28,-54,-62,-44,-71,-68,-52,-70,-35,-30,-27,-41,-48,-44,-14,-7,-3,-32,-8,-36,-66,-61,-54,-49,-37,-66,-50,-124,-87,-152,-170,-200,-183,-283,-308,-793,-798,-754,32767,32767,32767,32767,-556,-537,-544,-521,-539,-531,-550,-525,-543,-532,-560,-597,-570,-766,-583,-615,-628,-658,-1906,-680,-827,-1362,-5689,-5189,-29958,-12841,-29966,-2811,-1047,-29985,-29952,-29984,-12839,-29984,-6293,-29985,-29987,-29988,-29989,-29989,-29990,-29990]} 1. d4 {[%emt 0:00:17]} Nf6 {[%emt 0:00:52]} 2. c4 {[%emt 0:00:09]} e6 {[%emt 0:00:39]} 3. Nc3 {[%emt 0:00:45]} Bb4 {[%emt 0:00:46]} 4. a3 {[%emt 0:00:34]} Bxc3+ {[%emt 0:00:29]} 5. bxc3 {[%emt 0:00:20]} c5 {[%emt 0:00:44]} 6. d5 {[%emt 0:04:41]} (6. Qc2 $11 {deserves consideration.}) 6... d6 {[%emt 0:00:40]} 7. Bg5 {[%emt 0:08:33]} O-O {[%emt 0:01:25]} 8. Nf3 {[%emt 0:07:19]} exd5 {[%emt 0:01:52]} 9. cxd5 {[%emt 0:00:20]} Nbd7 {[%emt 0:01:29]} 10. c4 {[%emt 0:07:39]} b5 $1 {[%emt 0:01:01]} 11. e3 {[%emt 0:05:31]} h6 {[%emt 0:01:38]} ({Better is} 11... Ba6 $17 12. cxb5 {[#]} Bxb5 $1 13. Bxb5 Qa5+ 14. Nd2 Qxb5) 12. Bxf6 {[%emt 0:03:55]} Nxf6 {[%emt 0:01:07]} 13. cxb5 {[%emt 0:01:58]} a6 {[%emt 0:01:39]} 14. bxa6 {[%emt 0:07:52]} Qa5+ {[%emt 0:00:55]} 15. Qd2 {[%emt 0:00:50]} Qc7 {[%emt 0:01:57]} 16. Bc4 {[%emt 0:04:42]} Bxa6 {[%emt 0:01:03]} 17. Bxa6 {[%emt 0:01:42]} Rxa6 {[%emt 0:01:48]} 18. O-O {[%emt 0:00:34]} Rfa8 {[%emt 0:01:18]} 19. Qd3 {[%emt 0:04:11]} c4 {[%emt 0:01:54]} 20. Qd4 {[%emt 0:01:07]} Rxa3 {[%emt 0:00:36]} 21. Rac1 {[%emt 0:01:38]} (21. Rxa3 $15 Rxa3 22. Rc1) 21... c3 {[%emt 0:00:42]} 22. Qd3 {[%emt 0:09:37]} (22. Rfd1 $142) 22... Qc5 {[%emt 0:02:13]} 23. e4 {[%emt 0:04:54]} (23. Ne1 $17) 23... R8a4 {[%emt 0:01:35]} 24. Rfe1 {[%emt 0:02:51]} (24. e5 $142 dxe5 25. Nxe5) 24... Ra2 {[%emt 0:02:18]} 25. Rc2 $2 {[%emt 0:03:48]} (25. Qe3 Qxe3 26. Rxe3) 25... Rxc2 {[%emt 0:01:25]} 26. Qxc2 {[%emt 0:00:03]} Rb4 {[%emt 0:01:52]} 27. Rf1 {[%emt 0:06:34]} Rb2 {[%emt 0:08:07]} 28. Qd3 {[%emt 0:03:33]} c2 {[%emt 0:14:25]} 29. Rc1 {[%emt 0:00:32]} Ng4 {[%emt 0:09:36]} 30. Nd4 {[%emt 0:03:11]} Rb1 {[%emt 0:03:19]} 31. Rxb1 {[%emt 0:01:58]} cxb1=Q+ {[%emt 0:36:36]} 32. Qxb1 {[%emt 0:00:13]} Qxd4 {[%emt 0:00:00]} 33. Qe1 {[%emt 0:01:49]} Nf6 {[%emt 0:00:00]} 34. h3 {[%emt 0:01:07]} Nxe4 {[%emt 0:00:00]} 35. Kh2 {[%emt 0:00:58]} Qxd5 {[%emt 0:00:00]} 36. f3 {[%emt 0:00:21]} Nf6 {[%emt 0:00:00]} 37. Qc1 {[%emt 0:00:33]} Qc5 {[%emt 0:00:00]} 38. Qb1 {[%emt 0:00:43]} Qe5+ {[%emt 0:00:00]} 39. Kh1 {[%emt 0:00:15]} d5 {[%emt 0:00:00]} 40. Qc2 {[%emt 0:00:23]} d4 {[%emt 0:00:00]} 41. Qc8+ {[%emt 0:00:19]} Kh7 {[%emt 0:00:00]} 42. Qc2+ {[%emt 0:00:11]} g6 {[%emt 0:00:00]} 43. Qc4 {[%emt 0:00:14]} Qd5 {[%emt 0:00:00]} 44. Qa6 {[%emt 0:00:09] [#]} Kg7 {[%emt 0:00:00]} (44... d3 $142 $1 45. Qxf6 d2 46. Kh2 d1=Q 47. Qf4 Kg7 48. Qe3 Qd6+ 49. f4 Q1d4 50. Qxd4+ Qxd4 51. Kh1 Qf2 52. h4 Kf6 53. h5 gxh5 54. Kh2 h4 55. f5 Kxf5 56. Kh1 Kf4 57. Kh2 Qf1 58. Kh3 Qh1#) 45. Qd3 {[%emt 0:00:13]} Nh5 {[%emt 0:00:00]} (45... Qc5 $142 46. g4 Qc3 47. Qf1 d3 48. Kg1 Qc2 49. h4 d2 50. g5 Nh5 51. gxh6+ Kh7 52. f4 {[#]} Nxf4 $1 {[%mdl 512]} 53. Qxf4 d1=Q+ 54. Qf1 Qg4+ 55. Kh1 Qxh4+ 56. Qh3 Qxh3+ 57. Kg1 Qch2#) 46. Qd2 {[%emt 0:00:52]} d3 {[%emt 0:00:00]} 47. Qc3+ {[%emt 0:00:06]} Kh7 {[%emt 0:00:00]} 48. Qd2 {[%emt 0:00:08]} Ng3+ {[%emt 0:00:00]} 49. Kg1 {[%emt 0:00:09]} Qc4 {[%emt 0:00:00]} 0-1

[Event "WALTON 40th BAN-ch U20 Girls 2022"]
[Site "Dhaka"]
[Date "2022.02.21"]
[Round "7.5"]
[White "Israt, Jahan Diba"]
[Black "Omnia Binta Yusuf, Lubaba"]
[Result "1-0"]
[ECO "B15"]
[WhiteElo "1697"]
[BlackElo "1578"]
[Annotator "NA RC"]
[PlyCount "73"]
[EventDate "2022.02.15"]
[EventType "swiss"]
[EventCountry "BAN"]
[SourceTitle "playchess.com"]
[Source "ChessBase"]
[SourceQuality "1"]
[TimeControl "5400+30"]

1. e4 {[%emt 0:00:08]} c6 {[%emt 0:00:08]} 2. d4 {[%emt 0:00:13]} d5 {[%emt 0:00:05]} 3. Nc3 {[%emt 0:00:05]} dxe4 {[%emt 0:00:10]} 4. Nxe4 {[%emt 0:00:08]} Nf6 {[%emt 0:00:07]} 5. Nxf6+ {[%emt 0:00:07]} exf6 {[%emt 0:00:07]} 6. Nf3 {[%emt 0:01:14]} Bd6 {[%emt 0:00:24]} 7. Bd3 {[%emt 0:01:36]} O-O {[%emt 0:00:26]} 8. O-O {[%emt 0:00:30]} Re8 {[%emt 0:00:26]} 9. Be3 {[%emt 0:03:26]} Bg4 {[%emt 0:02:14]} 10. h3 {[%emt 0:00:36]} Bh5 {[%emt 0:00:25]} 11. c4 {[%emt 0:02:35]} Nd7 {[%emt 0:02:17]} 12. Kh1 {[%emt 0:07:22]} c5 {[%emt 0:03:38]} 13. g4 {[%emt 0:06:11]} Bg6 {[%emt 0:00:27]} 14. Bxg6 {[%emt 0:00:35]} fxg6 {[%emt 0:01:33]} 15. dxc5 {[%emt 0:01:28]} Bxc5 {[%emt 0:01:36]} 16. Qd5+ {[%emt 0:00:24]} Kh8 {[%emt 0:02:32]} 17. Bxc5 {[%emt 0:02:31]} Nxc5 {[%emt 0:00:20]} 18. Qxc5 {[%emt 0:00:22]} Qd3 {[%emt 0:01:35]} 19. Qd5 {[%emt 0:01:23]} Qc2 {[%emt 0:01:31]} 20. Qxb7 {[%emt 0:06:45]} f5 {[%emt 0:02:39]} 21. Qb3 {[%emt 0:01:23]} Qe4 {[%emt 0:01:54]} 22. Rae1 {[%emt 0:02:40]} Qf4 {[%emt 0:01:43]} 23. Rxe8+ {[%emt 0:04:34]} Rxe8 {[%emt 0:00:05]} 24. Re1 {[%emt 0:00:33]} Rxe1+ {[%emt 0:02:45]} 25. Nxe1 {[%emt 0:00:09]} h5 {[%emt 0:00:21]} 26. gxh5 {[%emt 0:01:40]} Qxf2 {[%emt 0:02:19]} 27. Qb8+ {[%emt 0:01:46]} Kh7 {[%emt 0:00:22]} 28. hxg6+ {[%emt 0:00:24]} Kxg6 {[%emt 0:01:02]} 29. Ng2 {[%emt 0:01:38]} Kg5 {[%emt 0:04:32]} 30. Kh2 {[%emt 0:02:36]} Kh5 {[%emt 0:02:35]} 31. Qe8+ {[%emt 0:01:53]} g6 {[%emt 0:01:28]} 32. Qh8+ {[%emt 0:01:32]} Kg5 {[%emt 0:00:17]} 33. h4+ {[%emt 0:01:10]} Kg4 {[%emt 0:01:02]} 34. Qc3 {[%emt 0:01:23]} f4 {[%emt 0:01:52]} 35. Qh3+ {[%emt 0:05:02]} Kh5 {[%emt 0:00:57]} 36. Qd7 {[%emt 0:04:11]} f3 {[%emt 0:05:32]} 37. Qh7+ {[%emt 0:00:22]} 1-0

[Event "WALTON 40th BAN-ch U20 Girls 2022"]
[Site "Dhaka"]
[Date "2022.02.22"]
[Round "8.2"]
[White "Kazi Zarin, Tasnim"]
[Black "Jannatul, Ferdous"]
[Result "1-0"]
[ECO "B00"]
[WhiteElo "1801"]
[BlackElo "1852"]
[Annotator "NA RC"]
[PlyCount "55"]
[EventDate "2022.02.15"]
[EventType "swiss"]
[EventCountry "BAN"]
[SourceTitle "playchess.com"]
[Source "ChessBase"]
[SourceQuality "1"]
[TimeControl "5400+30"]

1. e4 {[%emt 0:09:50]} a6 {[%emt 0:01:13]} 2. d4 {[%emt 0:00:59]} b5 {[%emt 0:00:14]} 3. a4 {[%emt 0:01:19]} Bb7 {[%emt 0:00:29]} 4. Bd3 {[%emt 0:00:02]} e6 {[%emt 0:00:40]} 5. Qe2 {[%emt 0:00:49]} b4 {[%emt 0:01:36]} 6. c3 {[%emt 0:01:28]} c5 {[%emt 0:02:37]} 7. Nf3 {[%emt 0:01:17]} a5 {[%emt 0:07:16]} 8. O-O {[%emt 0:04:20]} Na6 {[%emt 0:10:38]} 9. d5 {[%emt 0:04:40]} Qb6 {[%emt 0:03:03]} 10. Bf4 {[%emt 0:09:56]} Nf6 {[%emt 0:04:26]} (10... c4 {was necessary.}) 11. Nbd2 {[%emt 0:06:27]} d6 {[%emt 0:06:31]} 12. Bb5+ {[%emt 0:03:18]} Nd7 {[%emt 0:04:18]} 13. Nc4 {[%emt 0:00:31]} Qc7 {[%emt 0:01:10]} 14. dxe6 {[%emt 0:01:00]} fxe6 {[%emt 0:00:03]} 15. Rfd1 {[%emt 0:02:38]} Bc6 {[%emt 0:17:28]} 16. Bxd6 {[%emt 0:05:33]} Bxd6 {[%emt 0:04:15]} 17. Nxd6+ {[%emt 0:00:06]} Ke7 {[%emt 0:03:53]} 18. Bxa6 {[%emt 0:00:41]} Rhd8 {[%emt 0:04:15]} 19. Bb5 {[%emt 0:05:43]} Nf6 {[%emt 0:00:55]} 20. Bxc6 {[%emt 0:01:02]} Qxc6 {[%emt 0:00:03]} 21. Ne5 {[%emt 0:00:27]} Qc7 {[%emt 0:01:05]} 22. Nef7 {[%emt 0:04:29]} Rd7 {[%emt 0:01:06]} 23. e5 {[%emt 0:00:47]} Nd5 {[%emt 0:00:52]} 24. c4 {[%emt 0:03:32]} Nb6 {[%emt 0:01:16]} 25. b3 {[%emt 0:00:18]} Qc6 {[%emt 0:01:28]} 26. Qg4 {[%emt 0:01:18]} g6 {[%emt 0:02:19]} 27. Qg5+ {[%emt 0:00:15]} Kf8 {[%emt 0:00:05]} 28. Qf6 {[%emt 0:00:34]} 1-0

[Event "WALTON 40th BAN-ch U20 Girls 2022"]
[Site "Dhaka"]
[Date "2022.02.22"]
[Round "8.3"]
[White "Tasfia, Tahsin Prima"]
[Black "Israt, Jahan Diba"]
[Result "1-0"]
[ECO "B52"]
[WhiteElo "1423"]
[BlackElo "1697"]
[Annotator "NA RC"]
[PlyCount "130"]
[EventDate "2022.02.15"]
[EventType "swiss"]
[EventCountry "BAN"]
[SourceTitle "playchess.com"]
[Source "ChessBase"]
[SourceQuality "1"]
[TimeControl "5400+30"]

1. e4 {[%emt 0:00:04]} c5 {[%emt 0:00:07]} 2. Nf3 {[%emt 0:00:42]} d6 {[%emt 0:00:07]} 3. Bb5+ {[%emt 0:00:40]} Bd7 {[%emt 0:00:13]} 4. Bxd7+ {[%emt 0:00:26]} Qxd7 {[%emt 0:00:29]} 5. c4 {[%emt 0:01:23]} Nc6 {[%emt 0:01:14]} 6. O-O {[%emt 0:00:35]} Nf6 {[%emt 0:00:28]} 7. Nc3 {[%emt 0:00:29]} g6 {[%emt 0:01:32]} 8. d3 {[%emt 0:00:37]} Bg7 {[%emt 0:00:30]} 9. h3 {[%emt 0:00:36]} O-O {[%emt 0:00:32]} 10. Be3 {[%emt 0:00:35]} a6 {[%emt 0:03:23]} 11. Rc1 {[%emt 0:00:54]} Rac8 {[%emt 0:01:22]} 12. b3 {[%emt 0:01:34]} e6 {[%emt 0:02:42]} 13. d4 {[%emt 0:00:48]} cxd4 {[%emt 0:01:06]} 14. Nxd4 {[%emt 0:00:31]} Nxd4 {[%emt 0:01:12]} 15. Bxd4 {[%emt 0:00:34]} Qc6 {[%emt 0:01:15]} 16. Qd3 {[%emt 0:01:08]} Rfd8 {[%emt 0:08:04]} 17. Qe3 {[%emt 0:01:06]} Rd7 {[%emt 0:07:31]} 18. Nd5 {[%emt 0:04:42]} e5 {[%emt 0:04:09]} 19. Bb6 {[%emt 0:01:23]} Re8 {[%emt 0:04:24]} 20. Rfd1 {[%emt 0:00:55]} Kh8 {[%emt 0:03:54]} 21. f3 {[%emt 0:01:52]} Ng8 {[%emt 0:04:59]} 22. Qf2 {[%emt 0:02:44]} Ne7 {[%emt 0:02:30]} 23. Rc2 {[%emt 0:00:49]} f5 {[%emt 0:02:24]} 24. exf5 {[%emt 0:02:07]} Nxf5 {[%emt 0:01:13]} 25. Re2 {[%emt 0:06:39]} Rf8 {[%emt 0:06:23]} 26. Nb4 {[%emt 0:05:15]} Qc8 {[%emt 0:04:25]} 27. Nd5 {[%emt 0:05:08]} Qe8 {[%emt 0:04:19]} 28. Rde1 {[%emt 0:03:03]} Qf7 {[%emt 0:01:34]} 29. Re4 {[%emt 0:03:57]} Ne7 {[%emt 0:03:15]} 30. Nxe7 {[%emt 0:00:34]} Rxe7 {[%emt 0:00:48]} 31. Rd1 {[%emt 0:02:12]} Re6 {[%emt 0:01:13]} 32. Be3 {[%emt 0:01:26]} Qc7 {[%emt 0:02:36]} 33. Rd5 {[%emt 0:00:40]} Qc6 {[%emt 0:01:00]} 34. Qd2 {[%emt 0:03:09]} Rc8 {[%emt 0:01:58]} 35. a4 {[%emt 0:01:45]} Bf6 {[%emt 0:03:31]} 36. Qd1 {[%emt 0:02:05]} Rb8 {[%emt 0:01:19]} 37. a5 {[%emt 0:00:54]} Be7 {[%emt 0:01:58]} 38. Qd3 {[%emt 0:00:59]} Rf8 {[%emt 0:00:35]} 39. b4 {[%emt 0:00:55]} Qa4 {[%emt 0:02:06]} 40. c5 {[%emt 0:00:43]} dxc5 {[%emt 0:01:41]} 41. Bxc5 {[%emt 0:00:54]} Bxc5+ {[%emt 0:01:42]} 42. Rxc5 {[%emt 0:00:49]} Rf7 {[%emt 0:01:30]} 43. Qc3 {[%emt 0:00:43]} Qd1+ {[%emt 0:02:13]} 44. Kh2 {[%emt 0:00:28]} Qd6 {[%emt 0:02:28]} 45. b5 {[%emt 0:01:35]} axb5 {[%emt 0:01:31]} 46. Rxb5 {[%emt 0:00:53]} Rc7 {[%emt 0:02:36]} 47. Qb2 {[%emt 0:00:39]} Ree7 {[%emt 0:01:25]} 48. f4 {[%emt 0:00:39]} Rc5 {[%emt 0:01:24]} 49. Rxc5 {[%emt 0:00:43]} Qxc5 {[%emt 0:00:09]} 50. Rxe5 {[%emt 0:00:27]} Rxe5 {[%emt 0:00:43]} 51. Qxe5+ {[%emt 0:00:27]} Qxe5 {[%emt 0:00:09]} 52. fxe5 {[%emt 0:00:09]} Kg7 {[%emt 0:02:03]} 53. Kg3 {[%emt 0:00:36]} Kf7 {[%emt 0:03:10]} 54. Kf4 {[%emt 0:00:32]} h6 {[%emt 0:00:48]} 55. Ke4 {[%emt 0:00:42]} Ke6 {[%emt 0:00:24]} 56. g3 {[%emt 0:00:44]} Ke7 {[%emt 0:01:15]} 57. Kd5 {[%emt 0:00:42]} Kd7 {[%emt 0:00:35]} 58. e6+ {[%emt 0:01:02]} Ke8 {[%emt 0:00:42]} 59. Kd6 {[%emt 0:00:25]} Kd8 {[%emt 0:00:13]} 60. e7+ {[%emt 0:00:02]} Ke8 {[%emt 0:00:13]} 61. Kc7 {[%emt 0:00:42]} Kxe7 {[%emt 0:00:29]} 62. Kxb7 {[%emt 0:00:08]} Kd6 {[%emt 0:00:13]} 63. a6 {[%emt 0:00:11]} Ke5 {[%emt 0:00:10]} 64. a7 {[%emt 0:00:13]} Ke4 {[%emt 0:00:13]} 65. a8=Q {[%emt 0:00:14]} Kd5 {[%emt 0:02:41]} 1-0